Cogmind - Beta 14 @@@ ROGUE MODE // 2024.11.21 @ 16:36:05 Player: TheTravelingGuy Result: Destroyed by H-61 Shepherd with Heavy Assault Cannon Performance ------------- Evolutions (2) 1000 Regions Visited (4) 800 Robots Destroyed (99) 495 Value Destroyed (2688) 2688 Prototype IDs (7) 140 Alien Tech Used (0) 0 Bonus (315) 315 TOTAL SCORE: 5438 Bonus ------- High Alert Combat Kills 77 Follower Combat Kills 238 Cogmind --------- Core Integrity 0/550 Matter 266/300 Energy 300/300 System Corruption 0% Temperature Cool (-100) Movement Walking (90) Location -8/Materials Parts ------- > --- POWER (2) -------- (None) > --- PROPULSION (3) --- VSS Leg > --- UTILITY (4) ------ Cryofiber Web Compact Battery Advanced Targeting Computer > --- WEAPON (2) ------- Rocket Array > --- INVENTORY (5) ---- Light Nuclear Core Improved Deuterium Engine Improved Deuterium Engine Peak State ------------ > --- POWER ------------ Improved Deuterium Engine Improved Deuterium Engine > --- PROPULSION ------- Aluminum Leg Aluminum Leg VSS Leg > --- UTILITY ---------- Cryofiber Web Compact Battery Advanced Targeting Computer Advanced Targeting Computer > --- WEAPON ----------- Rocket Array Rocket Array > --- INVENTORY -------- Light Nuclear Core Improved Deuterium Engine Improved Deuterium Engine [Rating: 36] Favorites ----------- Power Light Nuclear Core Engine Improved Deuterium Engine Power Core Light Nuclear Core Propulsion Aluminum Leg Treads Light Treads Leg Aluminum Leg Wheel Wheel Flight Unit Improved Flight Unit Utility Improved Heat Sink Device Improved Heat Sink Storage Huge Storage Unit Processor Advanced Targeting Computer Hackware Hacking Suite Protection Utility Shielding Weapon Gatling Laser Energy Gun Gatling Laser Ballistic Gun Enhanced Autogun Ballistic Cannon Slug Cannon Launcher Mini Grenade Launcher Special Weapon Mining Laser Impact Weapon Heavy Hammer Build | -11 -10 -10 -9 -8 ------- Run | Yrd Mat Min Mat Mat Slots Evolved 4 | . . . 2 2 Power 1 | . . . . 1 Propulsion 1 | . . . . 1 Utility 2 | . . . 2 . Weapon . | . . . . . Parts Attached 97 | 6 19 11 19 42 Power 19 | 1 3 1 3 11 Engine 8 | 1 1 . 2 4 Core 11 | . 2 1 1 7 Reactor . | . . . . . Propulsion 22 | 2 5 2 8 5 Treads 4 | . . . 3 1 Leg 11 | . 2 2 3 4 Wheel 6 | 2 3 . 1 . Hover . | . . . . . Flight 1 | . . . 1 . Utility 25 | 1 7 1 5 11 Device 10 | . 1 1 3 5 Storage 3 | 1 1 . . 1 Processor 5 | . 1 . . 4 Hackware 1 | . 1 . . . Protection 6 | . 3 . 2 1 Artifact . | . . . . . Weapon 31 | 2 4 7 3 15 Energy Gun 17 | 2 3 3 1 8 Energy Cannon . | . . . . . Ballistic Gun 2 | . . . . 2 Ballistic Cannon 1 | . . 1 . . Launcher 7 | . 1 . 1 5 Special Weapon 3 | . . 3 . . Impact Weapon 1 | . . . 1 . Slashing Weapon . | . . . . . Piercing Weapon . | . . . . . Special Melee Weapon . | . . . . . Unidentified Prototypes 3 | . . . 1 2 Parts Lost 31 | . 3 7 8 13 Power 7 | . 1 1 1 4 Propulsion 11 | . 2 2 3 4 Utility 5 | . . 1 2 2 Weapon 8 | . . 3 2 3 Highest Loss Streak 8 | . 2 6 3 8 To Critical Strikes . | . . . . . Average Slot Usage (%) 85 | . 93 91 70 92 Engine 5 | . 4 . 5 7 Core 8 | . 9 13 4 9 Treads 1 | . . . 2 2 Leg 12 | . 1 21 5 19 Wheel 5 | . 25 4 1 . Device 11 | . 1 11 16 11 Storage 7 | . 8 14 7 3 Processor 6 | . 2 . . 18 Protection 6 | . 10 2 12 . Energy Gun 12 | . 22 18 1 14 Ballistic Cannon 3 | . . 3 8 . Launcher 1 | . 1 . 2 2 Peak Build Rating 36 | 6 11 15 17 36 Average Rating 17 | 4 8 11 12 30 On Entrance 7 | . 6 9 13 10 Naked Turns . | . . . . . Heaviest Build 99 | 14 92 93 99 36 Greatest Support 40 | 26 26 20 40 40 Greatest Overweight (x) 31 | . 4 27 31 6 Average Overweight (x) 2 | . 1 4 4 . Largest Inventory Capacity 25 | 8 25 25 25 5 Average Capacity 14 | 6 12 25 19 5 Most Carried 7 | 3 6 7 6 5 Average Carried 3 | . 4 5 2 4 Final Capacity 25 | 8 25 25 5 5 Final Carried 6 | 1 6 6 5 3 Class Distribution -------------------- 66% | Mutant 33% | Scavenger-Mutant Dominant Class ---------------- Mutant | -10/Materials Scavenger-Mutant | -10/Mines Mutant | -9/Materials Mutant | -8/Materials Resources | -11 -10 -10 -9 -8 ----------- Run | Yrd Mat Min Mat Mat Matter Collected 1998 | 224 316 95 566 797 Remotely . | . . . . . Salvage Created 2918 | . 548 217 750 1403 Parts 176 | . 40 11 43 82 Haulers Intercepted 5 | . 1 . 1 3 Recyclers Shooed 8 | . . 1 3 4 Parts Field Recycled . | . . . . . Retrieved Matter . | . . . . . Parts Self-Destructed . | . . . . . Prevented . | . . . . . Kills | -11 -10 -10 -9 -8 ------- Run | Yrd Mat Min Mat Mat Combat Hostiles Destroyed 71 | . 14 5 19 33 Guns 43 | . 11 5 3 24 Cannons 9 | . . . 9 . AOE 19 | . 3 . 7 9 Classes Destroyed 10 | . 6 . 3 1 Worker 2 | . . . . 2 Builder 4 | . 2 . . 2 Hauler 5 | . 1 . 1 3 Recycler 9 | . . . 6 3 Operator 2 | . 1 . . 1 Watcher 6 | . 2 . 2 2 Swarmer 19 | . 3 . 7 9 Grunt 41 | . 11 5 7 18 Duelist 1 | . . . 1 . Sentry 10 | . . . 4 6 Best Kill Streak 9 | . 6 2 9 7 Combat Bots Only 6 | . 4 2 3 6 Max Kills in Single Turn 3 | . 2 1 2 3 Gunslinging 1 | . . . . 1 Exploded 3 | . 2 . 1 3 Melee . | . . . . . Uniques/NPCs Destroyed . | . . . . . Combat | -11 -10 -10 -9 -8 -------- Run | Yrd Mat Min Mat Mat Hostile Shots Fired 378 | . 64 57 123 134 Missed 110 | . 19 10 31 50 Damage Taken 4229 | . 557 594 1286 1792 Core 1121 | . 108 103 355 555 Absorbed by Shields . | . . . . . Redirected to Shielding 37 | . . . 37 . Core Remaining (%) 42 | 100 . 15 11 . Volleys Fired 240 | . 64 40 71 65 Largest 2 | . 2 2 2 2 Hottest 160 | . 90 140 113 160 Shots Fired 375 | . 107 55 107 106 Gun 274 | . 97 53 36 88 Cannon 51 | . . . 51 . Launcher 48 | . 10 . 20 18 Special 2 | . . 2 . . Kinetic 58 | . . . 51 7 Thermal 254 | . 85 52 36 81 Explosive 48 | . 10 . 20 18 Electromagnetic 15 | . 12 3 . . Robot Hit Streak 10 | . 10 9 6 10 Robot Miss Streak 14 | . 6 3 14 4 Penetration Max . | . . . . . Secondary Targets 8 | . 2 . . 6 Max Gunslinging Chain 1 | . 1 . . 1 Shots Hit Robots 238 | . 59 33 57 89 Core Hits 194 | . 41 13 37 103 Critical Kills 4 | . . . 4 . Critical Parts Destroyed 2 | . . . 2 . Critical Strikes 9 | . 1 1 7 . Burn 3 | . 1 1 1 . Destroy 6 | . . . 6 . Melee Attacks . | . . . . . Impact . | . . . . . Slashing . | . . . . . Piercing . | . . . . . Sneak Attacks . | . . . . . Combat Hostiles . | . . . . . Follow-up Attacks . | . . . . . Damage Inflicted 6063 | . 1080 400 1559 3024 Guns 3077 | . 681 399 323 1674 Cannons 631 | . . . 631 . Explosions 2342 | . 387 . 605 1350 Melee . | . . . . . Ramming 13 | . 12 1 . . Kinetic 712 | . . . 631 81 Thermal 2877 | . 574 387 323 1593 Explosive 2342 | . 387 . 605 1350 Electromagnetic 119 | . 107 12 . . Impact . | . . . . . Slashing . | . . . . . Piercing . | . . . . . Highest Corruption . | . . . . . Average Corruption . | . . . . . Corruption Purged . | . . . . . Corruption Blocked . | . . . . . Overload Shots . | . . . . . Overflow Damage 54 | . 2 . 45 7 Projectiles 27 | . . . 27 . Explosions 27 | . 2 . 18 7 Melee . | . . . . . Knockbacks 7 | . . . 7 . Impact . | . . . . . Kinetic 6 | . . . 6 . Secondary 1 | . . . 1 . Self-Inflicted Damage 511 | . 69 . 180 262 Shots 23 | . 3 . 9 11 Rammed 1 | . 1 . . . Targets Rammed 2 | . 1 1 . . Kicked 1 | . . 1 . . Crushed . | . . . . . Highest Temperature 606 | . 435 487 372 606 Average Temperature 165 | . 138 195 106 187 Received Heat Transfer 1416 | . 216 336 270 594 Effects 25 | . 5 3 1 16 Shutdowns 4 | . 1 1 . 2 Energy Bleed 4 | . 2 1 1 . Interference 2 | . . . . 2 Matter Decay 3 | . . . . 3 Short Circuit 3 | . 2 . . 1 Damage (minor) 3 | . . 1 . 2 Damage (major) 6 | . . . . 6 Siege Activations . | . . . . . Robots Corrupted . | . . . . . Combat Hostiles . | . . . . . Parts Fried . | . . . . . Impact Corruptions . | . . . . . Robots Melted . | . . . . . Combat Hostiles . | . . . . . Parts Melted 9 | . 2 2 . 5 Heat Transferred 7200 | . 1622 1102 851 3625 Parts Sabotaged . | . . . . . Parts Stolen . | . . . . . Parts Stripped . | . . . . . Power Chain Reactions . | . . . . . Alert | -11 -10 -10 -9 -8 ------- Run | Yrd Mat Min Mat Mat Peak Influence 579 | . 316 145 347 579 Initial 146 | . . 56 . 146 Average 146 | . 158 37 110 238 Maximum Alert Level 2 | . 1 . 1 2 Low Security (%) 69 | 100 73 100 75 44 Level 1 26 | . 26 . 24 43 Level 2 3 | . . . . 11 Level 3 . | . . . . . Level 4 . | . . . . . Level 5 . | . . . . . High Security . | . . . . . Max Security . | . . . . . Squads Dispatched 13 | . 3 . 1 9 Investigation 8 | . 2 . 1 5 Extermination . | . . . . . Reinforcement 3 | . 1 . . 2 Assault . | . . . . . Garrison 2 | . . . . 2 Intercept . | . . . . . Searches Triggered . | . . . . . Construction Impeded . | . . . . . Haulers Reinforced . | . . . . . Active Scanning Responses . | . . . . . Cargo Convoy Interrupts . | . . . . . Stealth | -11 -10 -10 -9 -8 --------- Run | Yrd Mat Min Mat Mat Distress Signals 5 | . 3 . 1 1 Communications Jammed . | . . . . . Distress Signals . | . . . . . Times Spotted 100 | . 22 5 31 42 Peak Tracking Total 8 | . 4 2 5 8 Tactical Retreats 3 | . . . . 3 Traps | -11 -10 -10 -9 -8 ------- Run | Yrd Mat Min Mat Mat Traps Triggered 2 | . . . . 2 Indirectly . | . . . . . Trap Hack Attempts . | . . . . . Triggered . | . . . . . Disarmed . | . . . . . Reprogrammed . | . . . . . Reused . | . . . . . Traps Extracted . | . . . . . Installed . | . . . . . Triggered . | . . . . . Machines | -11 -10 -10 -9 -8 ---------- Run | Yrd Mat Min Mat Mat Machines Disabled 6 | . 1 . 2 3 Max in Single Turn 2 | . 1 . 1 2 Machines Repaired . | . . . . . Machines Dismantled . | . . . . . Machines Sabotaged . | . . . . . Overloaded Fab Kills . | . . . . . Hacking | -11 -10 -10 -9 -8 --------- Run | Yrd Mat Min Mat Mat Machines Accessed 16 | . 7 . 3 6 Terminals 10 | . 5 . 3 2 Fabricators . | . . . . . Repair Stations 1 | . . . . 1 Recycling Units 4 | . 2 . . 2 Scanalyzers . | . . . . . Garrison Access 1 | . . . . 1 Total Hacks 49 | . 23 . 7 19 Successful 21 | . 14 . 3 4 Failed 28 | . 9 . 4 15 Catastrophic 5 | . 1 . . 4 Database Lockouts . | . . . . . Manual . | . . . . . Terminals 25 | . 15 . 7 3 Fabricators . | . . . . . Repair Stations 3 | . . . . 3 Recycling Units 17 | . 8 . . 9 Scanalyzers . | . . . . . Garrison Access 4 | . . . . 4 Terminal Hacks 13 | . 9 . 3 1 Record 1 | . 1 . . . Prototype ID Bank 2 | . 2 . . . Branch Access Points 1 | . 1 . . . Emergency Access Points 1 | . . . 1 . Alert Level 2 | . 2 . . . Locate Traps 1 | . 1 . . . Maintenance Status 1 | . 1 . . . Registered Components 1 | . . . 1 . Zone Layout 3 | . 1 . 1 1 Fabricator Hacks . | . . . . . Repair Station Hacks 1 | . . . . 1 Scan Component 1 | . . . . 1 Recycling Unit Hacks 7 | . 5 . . 2 Process 1 | . 1 . . . Report Inventory 4 | . 2 . . 2 Retrieve Matter 1 | . 1 . . . Retrieve Components 1 | . 1 . . . Scanalyzer . | . . . . . Garrison Access Hacks . | . . . . . Unauthorized Hacks . | . . . . . Terminals . | . . . . . Fabricators . | . . . . . Repair Stations . | . . . . . Recycling Units . | . . . . . Scanalyzers . | . . . . . Garrison Access . | . . . . . Data Cores Recovered 1 | . 1 . . . Used . | . . . . . Hacking Detections 11 | . 4 . 2 5 Full Trace Events 10 | . 3 . 2 5 Feedback Events . | . . . . . Feedback Blocked . | . . . . . Robot Schematics Acquired . | . . . . . Robots Built . | . . . . . Authchips . | . . . . . Time . | . . . . . Total Robot Build Rating . | . . . . . Part Schematics Acquired . | . . . . . Parts Built . | . . . . . Authchips . | . . . . . Time . | . . . . . Total Part Build Rating . | . . . . . Parts Repaired . | . . . . . Time . | . . . . . Parts Recycled . | . . . . . Recycled Matter 34 | . 34 . . . Retrieved Matter 34 | . 34 . . . Retrieved Components 10 | . 10 . . . Parts Scanalyzed . | . . . . . Part Schematics Acquired . | . . . . . Parts Damaged . | . . . . . Bothacking | -11 -10 -10 -9 -8 ------------ Run | Yrd Mat Min Mat Mat Used RIF Installer . | . . . . . Robots Hacked . | . . . . . Non-combat . | . . . . . Combat . | . . . . . Robot Hacks Applied . | . . . . . Relay Couplers Released . | . . . . . Fabnet Peak Effective % . | . . . . . Robots Rewired . | . . . . . Allies Hacked . | . . . . . Hacks Repelled . | . . . . . Allies | -11 -10 -10 -9 -8 -------- Run | Yrd Mat Min Mat Mat Total Allies 4 | . . 4 . . Largest Group 3 | . . 3 3 . Highest-Rated Group 40 | . . 40 40 . Highest-Rated Ally 31 | . . 31 16 . Total Orders 7 | . . . 7 . FOLLOW 3 | . . . 3 . AID 4 | . . . 4 . Ally Attacks 46 | . . 11 35 . Total Damage 481 | . . 153 328 . Kills 8 | . . 1 7 . Allies Corrupted . | . . . . . Allies Melted . | . . . . . Intel | -11 -10 -10 -9 -8 ------- Run | Yrd Mat Min Mat Mat Robot Analysis Total . | . . . . . Derelict Logs Recovered 1 | . . 1 . . Drone Launches . | . . . . . Drone Recoveries . | . . . . . Exploration | -11 -10 -10 -9 -8 ------------- Run | Yrd Mat Min Mat Mat Turns Passed 7156 | 60 1170 1243 2333 2350 Spaces Moved 2483 | 36 727 306 577 837 Core 84 | 2 2 3 71 6 Treads 315 | . . . 133 182 Legs 1083 | . 19 225 190 649 Wheels 1001 | 34 706 78 183 . Hover . | . . . . . Flight . | . . . . . Fastest Speed 50 | 50 80 140 100 110 Average Speed 203 | 87 103 344 361 135 Slowest Speed 1600 | 90 200 1400 1600 350 Overloaded Moves . | . . . . . Propulsion Burnouts . | . . . . . Robots Hopped . | . . . . . Cave-ins Triggered . | . . . . . Exploration Rate (%) 49 | 4 97 52 46 49 Regions Visited 4 Branch Regions 1 Pre-discovered Areas . | . . . . . Known Exits Taken 1 | . 1 . . . Unknown Exits Taken 3 | 1 . 1 1 . Scrap Searched . | . . . . . Spaces Dug 23 | . . . 9 14 Terrain Destroyed 367 | . 41 2 160 164 Melee . | . . . . . Projectile 23 | . . 2 21 . AOE 344 | . 41 . 139 164 Terrain Rammed . | . . . . . Walls Destroyed . | . . . . . Machines Disabled . | . . . . . Actions | -11 -10 -10 -9 -8 --------- Run | Yrd Mat Min Mat Mat Total 4189 | 64 1040 433 715 1937 Wait 1232 | 16 195 68 27 926 Move 2479 | 35 726 305 576 837 Hop . | . . . . . Pick Up 85 | 7 20 7 15 36 Fast Attach 12 | . 3 . 1 8 Attach 58 | 6 12 8 14 18 Detach 2 | . . 1 . 1 Swap 27 | . 4 3 4 16 Drop 52 | . 15 . 7 30 Fire 240 | . 64 40 71 65 Melee . | . . . . . Ram 1 | . 1 . . . Kick 1 | . . 1 . . Crush . | . . . . . Escape Stasis . | . . . . . Rewire . | . . . . . Trap . | . . . . . Miscellaneous . | . . . . . Route ------- -11/Scrapyard -10/Materials (discovered 4 exits: *Mat x3 / *Min) -10/Mines -9/Materials (discovered 2 exits: *Mat / [*Min]) -8/Materials (discovered 1 exit: [*Fac]) History --------- Turn | Location | Event 41 | -11/Scrapyard | Discovered new exit (range 12) 61 | -11/Scrapyard | Entered Materials 101 | -10/Materials | Identified exit to Mines 304 | -10/Materials | Build established: Mutant 586 | -10/Materials | Discovered new exit (range 15) 789 | -10/Materials | Discovered new exit (range 6) 1089 | -10/Materials | Discovered new exit (range 12) 1231 | -10/Materials | Entered Mines 1240 | -10/Mines | Received a Mining Laser from a helpful Derelict 1370 | -10/Mines | Core integrity fell below 50% 1475 | -10/Mines | Core integrity fell below 20% 1507 | -10/Mines | Lost 6 parts (1p2n1u2w) 1835 | -10/Mines | Build established: Scavenger-Mutant 1999 | -10/Mines | Learned Materials terminal intel 2123 | -10/Mines | A weapon hastily lodged in a ceiling crevice suddenly fell to the ground 2290 | -10/Mines | Assisted by bots powering up and referring to "LRC-V3" 2374 | -10/Mines | Discovered new exit (range 3) 2474 | -10/Mines | Entered Materials 2474 | -9/Materials | Accompanied by 3 allies 2474 | -9/Materials | Evolved 2 slots: Utility x2 2475 | -9/Materials | Loaded intel: 12 terminal locations 3071 | -9/Materials | Lost 3 parts (1n1u1w) 3325 | -9/Materials | Build established: Mutant 4066 | -9/Materials | Core integrity fell below 50% 4250 | -9/Materials | Discovered new exit (range 13) 4400 | -9/Materials | Core integrity fell below 20% 4402 | -9/Materials | Discovered new exit (range 14) 4807 | -9/Materials | Entered another Materials area 4807 | -8/Materials | Evolved 2 slots: Power x1, Propulsion x1 5022 | -8/Materials | Garrison activated, responded to threat 5128 | -8/Materials | Lost 5 parts (2p2n1u) 5798 | -8/Materials | Build established: Scavenger-Mutant 6221 | -8/Materials | Found Prototype Launcher 6221 | -8/Materials | Identified Rocket Array 6235 | -8/Materials | Found Faulty Rocket Array 6237 | -8/Materials | Found Rocket Array 6239 | -8/Materials | Found Faulty Rocket Array 6521 | -8/Materials | Build established: Mutant 6783 | -8/Materials | Garrison activated, responded to threat 7000 | -8/Materials | Discovered new exit (range 12) 7140 | -8/Materials | Core integrity fell below 50% 7152 | -8/Materials | Core integrity fell below 20% 7157 | -8/Materials | Destroyed by H-61 Shepherd with Heavy Assault Cannon Last Messages --------------- 07151_ Rocket Array destroyed. 07151_ Destroyed Rocket Array. 07151_ G-47 Trooper destroyed. 07151_ A-02 Transporter destroyed. 07151_ Knocked back. 07152_ K-01 Serf collects debris. 07153_ The unstable cave ceiling collapses. 07153_ Imp. Deuterium Engine destroyed. 07153_ Adv. Targeting Computer destroyed. 07153_ Critical hit (Blast). 07153_ Knocked back. 07154_ Acquired 5 matter. 07155_ Acquired 6 matter. 07155_ The unstable cave ceiling collapses. 07156_ Prototype Hover Unit crushed. 07156_ U-05 Engineer lays Concrete. 07157_ R-06 Scavenger destroyed. 07157_ K-01 Serf destroyed. 07157_ U-05 Engineer destroyed. 07157_ U-05 Engineer lays Concrete. Map ----- +----------------------------------------------------+ | ?????????????????????????????????????????????????? | | ?????????????????????????????????????????????????? | | ?????????????????????????????????????????????????? | | ?????????????????????????????????????????????????? | | ?????????????????????????????????????????????????? | | ?????????????????????????????????????????????????? | | ?????????????????????????????????????????????????? | | ?????????????????????????????????????????????????? | | ?????????????????????????????????????????????????? | | ?????????????????????????????????????????????????? | | ?????????????????????????????????????????????????? | | ????###########????????????????? #???????????????? | | ????# ######??????????? #???????????????? | | ????# ""T"" # ! #??????????? #???????????????? | | ????# """"" # #??????????? #???????????????? | | ????# # #??????????? #???????????????? | | ????########+## #??????????? #?????????????#?? | | ?########## # #?????????? #???????????????# | | ?# ## # #?????????? #??????????????#? | | ?# + + #?????????? #??? ?????#??# | | ?# ## # ##########? ## #???????# | | ?# ## ###### ## ????#?? | | ## # #???# ??????# | | # # ##### !????# | | # + [% + ??### | | # # ##### @ %! H ! ? ??? | | # # #???# % =%* ?##? | | # ### ###???# *[% = ???? | | # #?# #????#; #!!= ??##?## | | ########### #????## ##=%! ? ?? ?# | | #??# #?????##########? u## ? ? ? # | | #??# #???????????????? #??? ??? ? # | | ##### #???????????????? #????? ?""??"? # | | #??????????????? #???#?? ?"? "?" # | | #??????????????? #???# """ ?S"?# | | #??????????????? #??#? ?? ?? ?? ?# | | #### #########???########### ################# | | #? # #???# | | ## # #???# % | | ## ## #???# % | | ### ### #???# ####% %###+################ | | #?##??# #???# !#??# %[#? ?? ???## | | #??????? ????# #??# !#? ??? #?## "" | | ##########+####### #??#[%%# ????" #### "" | | =% #??#!=%# """?" #### " | | *% [ #??# =*# ?"??? # # | | [!%*! #??#*!%#? ?"?? #### " | | ##########+###### ####??# =!# ?? #??# T | | #??????? ??? ????# %#?????? #### " | | #??????# # #???# =!# ? ? ? #?## | +----------------------------------------------------+ Best States ------------- Heat Dissipation 59 Energy Generation 27 Energy Capacity 680 Matter Stores 300 Matter Capacity 300 Sight Range 16 Terrain Scan Range 16 Terrain Scan Density 85 Base Temperature (-) 100 Armor Coverage 225 Core Shielding 20 Utility Shielding 33 Evasion (%) 55 Targeting Accuracy 16 Recoil Reduction 2 Offensive Hacking 10 Item Schematics ----------------- None Robot Schematics ------------------ None Fabricated ------------ Nothing Alien Tech Used ----------------- None Achievements -------------- Hey, That's Mine! Challenges ------------ None Game ------ Seed WeaponHypervelocityCharger Manual? 0 Play Time 00:49:43 Cumulative 5.3 hours Start 2024.11.21 @ 15:16:47 End 2024.11.21 @ 16:36:05 Sessions 1 Manual Loads 0 Difficulty Rogue Special Mode None Game No. 7 Rogue 7 Adventurer 0 Explorer 0 Win Type - Total 0 Types 0/0/0/0/0/0/0/0/0 Lore% 7 Gallery% 12 Achievement% 12 Wizard Run 0 Options --------- Layout 1 ASCII 0 Keyboard 0 Movement Mouse Keybinds 0 Fullscreen 2 Font 24/Smallcaps Map View 50x35 Zoom Use 0% Tactical HUD 1 Map Filters NONE Filters NONE Steam 1 RUN: c14ba74e-91b9-430e-bd85-65ce3ba0b9f7